bitfinex/quotes_ETHUSD_20240821
["timestamp","ask_amount","ask_price","bid_price","bid_amount"]
[1724251234022,3.82176,2616.6,2615.0,2.2867]
[1724251234023,3.82182,2616.6,2615.9,0.04979113]
[1724251234181,3.82182,2616.6,2616.1,0.04979113]
[1724251234323,4.431092,2616.6,2615.9,0.04979113]
[1724251234681,3.82259,2616.1,2615.7,0.04979113]
[1724251234822,7.13572,2616.7,2615.7,0.04979113]
[1724251234823,3.8217,2616.7,2616.2,0.04979113]
[1724251235341,3.82209,2616.4,2615.8,0.04979113]
[1724251235547,2.2703,2616.8,2616.1,0.04979113]
[1724251235761,3.82176,2616.6,2616.1,0.04979113]
[1724251236271,0.764333,2616.6,2615.9,0.04979113]
[1724251236594,0.764333,2616.6,2615.5,6.25222]
[1724251236595,3.82251,2616.1,2615.7,0.04979113]
[1724251236884,6.13909,2616.6,2615.9,0.04979113]
[1724251237089,0.613909,2616.5,2615.7,0.04979113]
[1724251237255,3.82214,2616.4,2615.7,0.04979113]
[1724251237462,6.139,2616.6,2616.1,0.04979113]
[1724251237637,6.139,2616.6,2615.9,0.04979113]
[1724251237951,2.9311,2616.6,2615.7,0.04979113]
[1724251238140,2.9311,2616.6,2615.1,2.38059113]
[1724251238141,3.314,2616.3,2615.1,2.38059113]
[1724251238337,3.82331,2615.6,2615.1,0.04979113]
[1724251238537,3.82252,2616.1,2615.1,0.04979113]
[1724251238538,3.82291,2615.9,2615.1,0.04979113]
[1724251238750,3.82291,2615.9,2615.3,0.04979113]
[1724251238986,3.82291,2615.9,2615.1,0.04979113]
[1724251238987,3.82308,2615.7,2615.1,0.04979113]
[1724251239195,3.82405,2615.1,2614.6,0.04979113]
[1724251239541,3.8242,2615.0,2614.6,0.04979113]
[1724251239786,3.8242,2615.0,2614.4,0.04979113]
[1724251240144,3.8242,2615.0,2614.5,0.10067949]
[1724251240145,3.82438,2614.8,2614.5,0.10067949]
[1724251240661,3.8242,2615.0,2614.5,0.10067949]
[1724251240968,3.82441,2614.8,2614.5,0.10067949]
[1724251241169,0.38242,2615.0,2614.5,0.10067949]
[1724251241395,3.82411,2615.0,2614.5,0.15047062]
[1724251241638,12.50646,2615.6,2614.5,0.15047062]
[1724251241941,3.82427,2614.9,2614.5,0.10067949]
[1724251242239,3.82398,2615.1,2614.6,0.04979113]
[1724251242607,3.82374,2615.3,2614.8,0.04979113]
[1724251243130,3.82389,2615.2,2614.9,0.10032873]
[1724251243290,2.3794,2615.4,2614.9,0.10032873]
[1724251243291,3.82398,2615.1,2614.9,0.10032873]
[1724251243497,11.47227,2615.0,2614.9,0.10032873]
[1724251243810,3.82546,2614.1,2613.9,0.04979113]
[1724251243987,3.82516,2614.3,2613.9,0.04979113]
[1724251244191,3.82516,2614.3,2614.0,0.1011181]
[1724251244644,3.8254,2614.1,2614.0,0.1011181]
[1724251245143,3.8253,2614.2,2613.7,0.04979113]
[1724251245342,3.8253,2614.2,2614.0,0.1019035]
[1724251245494,3.82521,2614.3,2613.9,0.04979113]
[1724251245698,3.82483,2614.5,2614.0,0.1019035]
[1724251245934,3.82459,2614.7,2614.1,0.04979113]
[1724251246203,9.22658,2614.9,2614.3,0.04979113]
[1724251246411,3.82463,2614.7,2614.3,0.04979113]
[1724251246616,3.82482,2614.5,2614.4,0.10181275]
[1724251246800,7.64964,2614.5,2614.4,0.10181275]
[1724251246999,7.64964,2614.5,2613.3,5.4428]
[1724251247000,3.82567,2614.0,2613.3,2.49259113]
[1724251247232,3.82567,2614.0,2613.1,3.82675]
[1724251247233,3.82585,2613.8,2613.1,3.82675]
[1724251247439,3.82585,2613.8,2612.9,6.27669]
[1724251247440,3.82617,2613.6,2613.4,0.10269019]
[1724251247634,3.82617,2613.6,2613.3,0.04979113]
[1724251247995,3.82588,2613.8,2613.4,0.10278985]
[1724251248698,3.82615,2613.6,2613.4,0.10278985]
[1724251249776,7.65256,2613.5,2613.4,0.10278985]
[1724251250261,3.82659,2613.3,2613.0,0.04979113]
[1724251250748,3.82606,2613.7,2613.2,0.04979113]
[1724251250940,3.82574,2613.9,2613.2,0.04979113]
[1724251251146,3.82547,2614.1,2613.6,0.04979113]
[1724251251340,3.82608,2613.7,2613.4,0.04979113]
[1724251252140,7.13915,2614.3,2613.7,0.04979113]
[1724251252141,3.314,2614.3,2613.7,0.04979113]
[1724251252349,3.8255,2614.1,2613.7,0.04979113]
[1724251252583,7.6498,2614.5,2613.9,0.04979113]
[1724251252797,6.82488,2614.5,2613.9,0.04979113]
[1724251252975,3.82483,2614.5,2614.3,0.04979113]
[1724251253584,3.82521,2614.3,2613.9,0.04979113]
[1724251253902,8.0992178,2614.9,2613.7,0.04979113]
[1724251254082,3.82532,2614.2,2613.9,0.04979113]
[1724251254864,3.82503,2614.4,2613.9,0.04979113]
[1724251255109,3.82584,2613.8,2613.4,0.04979113]
[1724251255401,3.82552,2614.1,2613.9,0.04979113]
[1724251255775,3.82552,2614.1,2613.6,0.04979113]
[1724251255776,3.82556,2614.0,2613.6,0.04979113]
[1724251256072,3.82585,2613.8,2613.3,0.04979113]
[1724251257110,3.82585,2613.8,2613.2,2.3415]
[1724251257111,7.65071,2614.2,2613.7,0.04979113]
[1724251257305,3.82541,2614.1,2613.7,0.04979113]
[1724251257610,3.82533,2614.2,2613.7,0.04979113]
[1724251257811,3.82559,2614.0,2613.8,0.10387747]
[1724251258104,3.8257,2613.9,2613.6,0.04979113]
[1724251258306,3.82542,2614.1,2613.8,0.04979113]
[1724251258502,7.65094,2614.1,2613.9,0.10378972]
[1724251258717,3.82555,2614.0,2613.9,0.10378972]
[1724251258934,3.82586,2613.8,2613.5,0.04979113]
[1724251259077,3.82586,2613.8,2613.0,0.04979113]
[1724251259078,3.82652,2613.4,2613.0,0.04979113]
[1724251259404,3.8268,2613.2,2613.1,0.04979113]
[1724251259808,3.82665,2613.3,2613.1,0.04979113]
[1724251259991,7.65337,2613.3,2613.1,0.04979113]
[1724251260198,3.82665,2613.3,2613.1,0.04979113]
[1724251260407,3.82672,2613.2,2613.1,0.04979113]
[1724251260729,3.82695,2613.1,2612.9,0.04979113]
[1724251260874,3.82665,2613.3,2612.9,0.04979113]
[1724251261587,3.82665,2613.3,2613.1,0.04979113]
[1724251261793,3.0,2613.7,2613.5,0.04979113]
[1724251262027,3.82586,2613.8,2613.3,0.04979113]
[1724251262175,3.82697,2613.1,2612.9,0.04979113]
[1724251262374,7.65402,2613.0,2612.9,0.04979113]
[1724251262922,3.82701,2613.0,2612.9,0.04979113]
[1724251263071,3.82701,2613.0,2612.6,0.04979113]
[1724251263272,3.82701,2613.0,2612.2,0.04979113]
[1724251263273,3.82783,2612.5,2612.2,0.04979113]
[1724251263928,3.82752,2612.7,2612.2,0.04979113]
[1724251264079,3.0,2613.2,2612.6,0.04979113]
[1724251264080,3.82721,2612.9,2612.6,0.04979113]
[1724251264279,3.0,2613.2,2612.9,0.04979113]
[1724251264479,3.8268,2613.2,2612.9,0.04979113]
[1724251264691,4.5705,2613.5,2612.9,0.04979113]
[1724251264692,3.8263,2613.5,2613.3,0.04979113]
[1724251264886,3.82617,2613.6,2613.3,0.04979113]
[1724251265087,7.65188,2613.8,2613.5,0.04979113]
[1724251265306,32.015097,2614.0,2613.9,0.04979113]
[1724251265307,35.07563,2614.0,2613.9,0.04979113]
[1724251265514,3.82592,2613.8,2613.6,0.04979113]
[1724251265726,3.82573,2613.9,2613.6,0.04979113]
[1724251266024,3.82573,2613.9,2613.7,0.1047241]
[1724251266187,35.07567,2614.0,2613.8,0.04979113]
[1724251266523,35.07567,2614.0,2613.2,8.0713]
[1724251266524,31.25,2614.0,2613.9,0.04979113]
[1724251267590,31.25,2614.0,2613.9,8.47979113]
[1724251267794,31.25,2614.0,2613.9,12.95904051]
[1724251268420,31.25,2614.0,2613.9,12.13334051]
[1724251269256,31.25,2614.0,2613.9,15.95904051]
[1724251269449,31.25,2614.0,2613.9,17.55494456]
[1724251269595,30.45188227,2614.0,2613.9,17.55494456]
[1724251270044,30.45188227,2614.0,2613.9,13.72924456]
[1724251271144,30.45188227,2614.0,2613.9,9.90354456]
[1724251271516,30.45188227,2614.0,2613.9,13.72924456]
[1724251271843,30.45188227,2614.0,2613.9,17.55494456]
[1724251272046,30.45188227,2614.0,2613.9,13.72924456]
[1724251272744,30.45188227,2614.0,2613.9,9.90354456]
[1724251273103,30.45188227,2614.0,2613.9,6.35354456]
[1724251273459,30.45188227,2614.0,2613.9,6.90354456]
[1724251273602,30.45188227,2614.0,2613.9,17.55494456]
[1724251273997,30.45188227,2614.0,2613.9,21.38064456]
[1724251274429,30.45188227,2614.0,2613.9,17.55494456]
[1724251278149,30.45188227,2614.0,2613.9,21.38064456]
[1724251278351,30.45188227,2614.0,2613.9,17.55494456]
[1724251278856,30.45188227,2614.0,2613.9,21.38064456]
[1724251279188,30.45188227,2614.0,2613.9,17.55494456]
[1724251279355,30.45188227,2614.0,2613.9,21.38064456]
[1724251279510,30.45188227,2614.0,2613.9,17.55494456]
[1724251280474,30.45188227,2614.0,2613.9,29.27009716]
[1724251280475,17.07863043,2614.0,2613.9,29.27009716]
[1724251280670,17.07863043,2614.0,2613.9,25.00234456]
[1724251280810,17.07863043,2614.0,2613.9,28.82804456]
[1724251281244,7.03986629,2614.0,2613.9,28.82804456]
[1724251281452,3.82281,2615.9,2615.7,0.04979113]
[1724251281662,5.029999,2615.9,2615.7,0.04979113]
[1724251281822,3.82268,2616.0,2615.8,0.10043834]
[1724251282006,4.4264,2616.1,2615.9,0.04979113]
[1724251282205,4.4264,2616.1,2615.9,0.14996482]
[1724251282206,0.07645074,2616.0,2615.9,0.14996482]
[1724251282406,7.72169074,2616.0,2615.9,0.04979113]
[1724251282979,3.82262,2616.0,2615.9,0.04979113]
[1724251283254,3.82183,2616.6,2616.4,0.04979113]
[1724251283477,7.72023074,2616.5,2616.4,0.04979113]
[1724251283765,3.8224,2616.2,2616.1,0.04979113]
[1724251284116,3.8224,2616.2,2615.9,0.04979113]
[1724251284353,3.8224,2616.2,2616.1,0.04979113]
[1724251284555,4.59449307,2616.2,2616.1,0.04979113]
[1724251284761,0.77209307,2616.2,2616.1,0.04979113]
[1724251285206,3.8222,2616.3,2615.9,0.04979113]
[1724251285411,3.82273,2616.0,2615.7,0.04979113]
[1724251285610,3.82195,2616.5,2615.7,0.04979113]
[1724251285611,3.82292,2615.8,2615.7,0.04979113]
[1724251285852,3.89937074,2615.8,2615.7,0.04979113]
[1724251286055,8.18689,2615.9,2615.6,0.04979113]
[1724251286238,0.818689,2615.8,2615.6,0.04979113]
[1724251286465,0.818689,2615.8,2615.4,0.04979113]
[1724251286611,0.818689,2615.8,2615.1,3.82387]
[1724251286612,3.82306,2615.7,2615.6,0.04979113]
[1724251286842,4.591609,2615.8,2615.6,0.04979113]
[1724251287296,0.79513974,2615.8,2615.4,0.04979113]
[1724251287444,8.18698,2615.9,2615.6,0.04979113]
[1724251287445,0.97466271,2615.7,2615.6,0.04979113]
[1724251287647,4.3641,2615.9,2615.3,0.04979113]
[1724251287648,3.82331,2615.6,2615.3,0.04979113]
[1724251287961,3.82331,2615.6,2615.5,0.04979113]
[1724251288162,3.82335,2615.6,2615.3,0.04979113]
[1724251288365,4.3641,2615.9,2615.5,0.04979113]
[1724251288580,3.82319,2615.7,2615.6,0.09921963]
[1724251288881,23.63155481,2615.7,2615.6,0.09921963]
[1724251289203,23.63155481,2615.7,2614.0,3.82548]
[1724251289204,3.82462,2614.7,2614.0,3.82548]
[1724251289492,3.82462,2614.7,2614.1,0.04979113]
[1724251289493,3.82492,2614.5,2614.1,0.04979113]
[1724251289702,3.82492,2614.5,2614.3,0.04979113]
[1724251289703,0.66162982,2614.5,2614.3,0.04979113]
[1724251290247,0.66162982,2614.5,2613.4,3.82639]
[1724251290248,7.8304,2614.9,2614.5,0.04979113]
[1724251290448,4.0061,2614.9,2614.7,0.04979113]
[1724251291199,7.83037,2614.9,2614.7,0.04979113]
[1724251291361,7.83037,2614.9,2614.0,3.82549]
[1724251291362,7.90682074,2614.9,2614.5,0.04979113]
[1724251291566,0.79068207,2614.8,2614.6,0.09672617]
[1724251291783,3.82454,2614.7,2614.6,0.1465173]
[1724251291965,4.0061,2614.9,2614.6,0.1465173]
[1724251292294,3.82453,2614.7,2614.3,0.04979113]
[1724251292467,7.83034,2614.9,2614.5,0.04979113]
[1724251292797,4.0061,2614.9,2614.8,0.04979113]
[1724251292994,4.0061,2614.9,2614.6,0.1465173]
[1724251293296,7.83035,2614.9,2614.8,0.09655079]
[1724251293463,8.61336,2614.9,2614.8,0.04979113]
[1724251293666,7.95811,2615.3,2615.0,0.04979113]
[1724251293998,7.95811,2615.3,2615.1,0.09628777]
[1724251294350,3.82417,2615.0,2614.8,0.04979113]
[1724251294795,7.64777,2615.2,2614.8,0.04979113]
[1724251295091,1.178217,2615.2,2615.0,0.04979113]
[1724251295244,7.95805,2615.3,2615.0,0.04979113]
[1724251295449,3.82382,2615.2,2615.0,0.04979113]
[1724251296050,3.82438,2614.8,2614.7,0.04979113]
[1724251296251,3.90083074,2614.8,2614.7,0.04979113]
[1724251296449,0.84895881,2614.8,2614.4,0.04979113]
[1724251296695,3.82462,2614.7,2614.4,0.04979113]
[1724251297102,3.82439,2614.8,2614.6,0.04979113]
[1724251297262,3.82417,2615.0,2614.6,0.04979113]
[1724251297465,3.82387,2615.2,2614.8,0.04979113]
[1724251297649,4.1344,2615.3,2614.6,0.04979113]
[1724251297650,0.07645074,2615.1,2614.6,0.04979113]
[1724251297852,3.82453,2614.7,2614.6,0.04979113]
[1724251298296,3.82441,2614.8,2614.6,0.04979113]
[1724251298517,3.312,2614.8,2614.4,0.04979113]
[1724251298652,3.82511,2614.3,2614.2,0.04979113]
[1724251298854,7.6502,2614.4,2614.2,0.04979113]
[1724251299095,3.82471,2614.6,2614.4,0.04979113]
[1724251299309,3.0,2614.9,2614.6,0.04979113]
[1724251299613,3.90092074,2614.8,2614.6,0.04979113]
[1724251299799,3.82453,2614.7,2614.6,0.04979113]
[1724251300296,3.82453,2614.7,2614.6,0.14797212]
[1724251300515,3.82453,2614.7,2614.6,0.04979113]
[1724251300796,4.1767,2615.0,2613.8,8.22658]
[1724251300797,4.1767,2615.0,2614.4,0.04979113]
[1724251300999,3.82482,2614.5,2614.4,0.04979113]
[1724251301299,7.64934,2614.6,2614.5,0.09826869]
[1724251301501,3.82507,2614.4,2614.2,0.04979113]
[1724251301875,4.67415481,2614.4,2614.2,0.04979113]
[1724251302025,3.82511,2614.3,2614.0,0.04979113]
[1724251302240,3.82511,2614.3,2613.6,3.82603]
[1724251302241,4.59762407,2614.4,2614.2,0.04979113]
[1724251302532,3.82499,2614.4,2614.2,0.04979113]
[1724251302679,3.82485,2614.5,2614.2,0.04979113]
[1724251302883,3.82485,2614.5,2614.3,0.09844411]
[1724251303137,8.18689,2614.8,2614.5,0.04979113]
[1724251303328,8.18689,2614.8,2613.3,3.82649]
[1724251303329,4.3624,2614.8,2614.7,0.04979113]
[1724251303679,3.82386,2615.2,2615.0,0.04979113]
[1724251303929,3.82394,2615.1,2615.0,0.04979113]
[1724251304295,3.82386,2615.2,2615.0,0.04979113]
[1724251304485,7.64778,2615.2,2615.0,0.04979113]
[1724251304838,0.713555,2615.3,2614.8,0.04979113]
[1724251305032,7.6484,2615.0,2614.8,0.04979113]
[1724251305187,3.8242,2615.0,2614.8,0.04979113]
[1724251305711,3.82394,2615.1,2615.0,0.04979113]
[1724251306044,3.82409,2615.0,2614.8,0.04979113]
[1724251307038,0.53151315,2615.1,2614.8,0.04979113]
[1724251307406,8.17885,2615.5,2615.2,0.04979113]
[1724251307713,3.82365,2615.3,2615.2,0.04979113]
[1724251308161,3.82365,2615.3,2614.3,4.3644]
[1724251308162,3.82314,2615.7,2615.4,0.04979113]
[1724251308441,4.0478,2615.8,2615.6,0.04979113]
[1724251308594,4.0478,2615.8,2615.0,3.82402]
[1724251308595,3.82262,2616.0,2615.9,0.04979113]
[1724251308795,1.528018,2616.0,2615.9,0.04979113]
[1724251309011,4.395,2616.2,2615.9,0.04979113]
[1724251309292,4.395,2616.2,2615.0,7.82155]
[1724251309293,3.31645074,2616.1,2615.7,0.04979113]
[1724251309491,3.31645074,2616.1,2615.5,0.04979113]
[1724251309492,0.07645074,2616.0,2615.5,0.04979113]
[1724251309727,3.82308,2615.7,2615.5,0.04979113]
[1724251309943,0.07645074,2615.6,2615.5,0.04979113]
[1724251310149,3.89980074,2615.6,2615.5,0.04979113]
[1724251310310,0.07645074,2615.6,2615.5,0.04979113]
[1724251310644,3.82321,2615.6,2615.5,0.04979113]
[1724251310948,3.89957074,2615.7,2615.5,0.04979113]
[1724251311153,7.395,2616.2,2616.0,0.04979113]
[1724251311440,4.56198,2616.1,2616.0,0.04979113]
[1724251311836,0.7395,2616.1,2616.0,0.04979113]
[1724251312655,4.56198,2616.1,2616.0,0.04979113]
[1724251312941,0.7395,2616.1,2616.0,0.04979113]
[1724251313237,4.56198,2616.1,2616.0,0.04979113]
[1724251313408,4.56198,2616.1,2615.4,4.1711]
[1724251313409,3.82207,2616.4,2616.2,0.04979113]
[1724251313625,0.5995758,2617.0,2616.3,0.04979113]
[1724251313938,0.5995758,2617.0,2616.0,4.415]
[1724251313939,3.8216,2616.7,2616.6,0.04979113]
[1724251314460,7.6432,2616.7,2616.6,0.04979113]
[1724251314620,3.24,2616.8,2616.4,0.04979113]
[1724251314621,7.64378,2616.5,2616.4,0.04979113]
[1724251315225,7.6432,2616.7,2616.6,0.14571043]
[1724251315410,3.8216,2616.7,2616.6,0.04979113]
[1724251315823,7.6432,2616.7,2616.6,0.14571043]
[1724251316046,7.6432,2616.7,2616.6,0.04979113]
[1724251316212,9.113653,2616.7,2616.6,0.04979113]
[1724251316648,5.292053,2616.7,2616.6,0.04979113]
[1724251316938,7.6432,2616.7,2616.6,0.14571043]
[1724251317146,7.6432,2616.7,2616.5,0.04979113]
[1724251317147,3.82175,2616.6,2616.5,0.04979113]
[1724251317452,3.8216,2616.7,2616.5,0.04979113]
[1724251317800,3.8216,2616.7,2616.6,0.0959193]
[1724251318136,3.82138,2616.9,2616.5,0.04979113]
[1724251318347,3.82147,2616.8,2616.5,0.04979113]
[1724251318515,3.82167,2616.7,2616.6,0.0959193]
[1724251319065,7.6435,2616.6,2616.5,0.04979113]
[1724251319202,3.82156,2616.8,2616.7,0.04979113]
[1724251319543,3.82131,2616.9,2616.7,0.04979113]
[1724251319544,7.64273,2616.9,2616.7,0.04979113]
[1724251319853,3.82131,2616.9,2616.7,0.04979113]
[1724251320302,3.82131,2616.9,2616.8,0.09574418]
[1724251320499,3.82131,2616.9,2616.7,0.04979113]
[1724251320749,3.82131,2616.9,2616.8,0.09574418]
[1724251320901,4.9667598,2616.9,2616.7,0.04979113]
[1724251321103,4.9667598,2616.9,2616.5,0.04979113]
[1724251321104,0.07645074,2616.8,2616.5,0.04979113]
[1724251321350,3.82175,2616.6,2616.5,0.04979113]
[1724251321869,1.1454498,2616.9,2616.8,0.04979113]
[1724251322216,8.7880698,2616.9,2616.8,0.04979113]
[1724251322547,3.8216,2616.7,2616.6,0.04979113]
[1724251322903,7.6432,2616.7,2616.6,0.04979113]
[1724251323229,8.52206498,2616.7,2616.6,0.04979113]
[1724251323438,4.70046498,2616.7,2616.6,0.04979113]
[1724251323604,3.8216,2616.7,2616.6,0.04979113]
[1724251324201,7.64305,2616.8,2616.6,0.04979113]
[1724251324410,3.82151,2616.8,2616.6,0.04979113]
[1724251324610,3.8216,2616.7,2616.6,0.04979113]
[1724251324963,3.24,2617.0,2616.8,0.04979113]
[1724251324964,3.82118,2617.0,2616.8,0.04979113]
[1724251325107,8.3194,2617.3,2617.2,0.04979113]
[1724251325108,3.82073,2617.3,2617.2,0.04979113]
[1724251325304,4.909,2618.2,2617.8,0.04979113]
[1724251325551,3.89630074,2617.9,2617.8,0.04979113]
[1724251325759,7.64058,2617.6,2617.5,0.04979113]
[1724251325909,3.82029,2617.6,2617.5,0.04979113]
[1724251326107,11.262609,2617.6,2617.5,0.04979113]
[1724251326534,7.442319,2617.6,2617.5,0.04979113]
[1724251326873,10.88058,2617.6,2617.5,0.04979113]
[1724251327059,3.82098,2617.2,2617.1,0.04979113]
[1724251327223,3.82124,2617.0,2616.6,0.04979113]
[1724251327424,3.8216,2616.7,2616.6,0.04979113]
[1724251327847,3.89805074,2616.7,2616.6,0.04979113]
[1724251328008,3.82115,2617.1,2617.0,0.04979113]
[1724251328371,3.82058,2617.4,2617.3,0.04979113]
[1724251329014,3.82037,2617.6,2617.3,0.04979113]
[1724251329411,3.82058,2617.4,2617.3,0.04979113]
[1724251329611,3.82055,2617.5,2617.3,0.04979113]
[1724251329816,3.81992,2617.9,2617.8,0.04979113]
[1724251330044,8.021842,2617.9,2617.8,0.04979113]
[1724251330612,8.021842,2617.9,2616.9,3.82123]
[1724251330613,7.64028,2617.7,2617.6,0.04979113]
[1724251331028,4.201932,2617.9,2617.6,0.04979113]
[1724251331225,3.81974,2618.0,2617.9,0.04979113]
[1724251331710,3.81945,2618.2,2618.1,0.04979113]
[1724251332681,3.8197,2618.0,2617.9,0.04979113]
[1724251332861,3.81954,2618.2,2618.1,0.04979113]
[1724251333062,8.907445,2618.2,2618.1,0.04979113]
[1724251333360,5.087905,2618.2,2618.1,0.04979113]
[1724251333666,3.8197,2618.0,2617.9,0.04979113]
[1724251333886,7.6394,2618.0,2617.9,0.04979113]
[1724251334084,3.8197,2618.0,2617.9,0.14270951]
[1724251334373,3.81874427,2618.0,2617.9,0.14270951]
[1724251335003,7.63839,2618.4,2618.3,0.04979113]
[1724251335323,1.005904,2618.4,2618.3,0.04979113]
[1724251335484,7.63789,2618.6,2618.5,0.04979113]
[1724251335696,7.63789,2618.6,2618.5,0.14147768]
[1724251335697,3.81892,2618.6,2618.5,0.14147768]
[1724251335896,3.81892,2618.6,2618.5,0.04979113]
[1724251336094,3.81892,2618.6,2618.5,0.14147768]
[1724251336436,11.641511,2618.6,2618.5,0.09168655]
[1724251336595,19.57488,2618.6,2618.5,0.09168655]
[1724251336775,3.8197,2618.0,2617.9,0.04979113]
[1724251337232,3.81951,2618.2,2618.1,0.04979113]
[1724251337432,3.819,2618.5,2618.3,0.04979113]
[1724251337731,3.819,2618.5,2616.9,1.31133596]
[1724251337732,0.42236399,2619.2,2619.0,0.04979113]
[1724251338237,0.42236399,2619.2,2619.1,0.09116205]
[1724251338377,0.42236399,2619.2,2619.1,4.43080737]
[1724251338578,0.42236399,2619.2,2619.1,0.61270737]
[1724251338883,0.42236399,2619.2,2619.1,0.09116205]
[1724251339576,8.05826399,2619.2,2619.1,0.09116205]
[1724251339977,3.81839,2618.9,2618.5,0.04979113]
[1724251340225,7.63766,2618.6,2618.5,0.04979113]
[1724251340430,3.81883,2618.6,2618.5,0.04979113]
[1724251340632,7.637,2618.9,2618.7,0.04979113]
[1724251340814,7.637,2618.9,2618.0,3.31638827]
[1724251340815,7.63633,2619.1,2619.0,0.04979113]
[1724251340977,3.8181,2619.1,2619.0,0.04979113]
[1724251341679,0.42236399,2619.2,2619.0,0.04979113]
[1724251341876,3.8181,2619.1,2619.0,0.04979113]
[1724251342617,5.86990514,2619.1,2618.8,0.04979113]
[1724251342939,7.63736,2618.7,2618.6,0.04979113]
[1724251343115,7.63796,2618.5,2618.4,0.04979113]
[1724251343321,3.81956,2618.1,2618.0,0.04979113]
[1724251343484,3.81956,2618.1,2617.3,5.1977]
[1724251343485,3.81859,2618.8,2618.4,0.04979113]
[1724251343718,3.81868,2618.7,2618.6,0.04979113]
[1724251343927,0.42236399,2619.2,2619.0,0.04979113]
[1724251344120,4.24032399,2619.2,2619.0,0.04979113]
[1724251344430,0.42236399,2619.2,2618.7,0.04979113]
[1724251344595,3.81854,2618.8,2618.7,0.04979113]
[1724251344800,7.63708,2618.8,2618.7,0.04979113]
[1724251345039,3.81927,2618.3,2618.2,0.04979113]
[1724251345541,7.63744,2618.7,2618.6,0.04979113]
[1724251346284,3.81927,2618.3,2618.2,0.04979113]
[1724251346551,3.81956,2618.1,2618.0,0.04979113]
[1724251346828,3.81954,2618.2,2618.0,0.04979113]
[1724251347033,3.81956,2618.1,2618.0,0.04979113]
[1724251347261,3.81912,2618.4,2618.3,0.04979113]
[1724251347466,3.81941,2618.2,2617.9,0.04979113]
[1724251347631,7.6394,2618.0,2617.9,0.04979113]
[1724251347831,7.71585074,2618.0,2617.9,0.04979113]
[1724251348616,7.6394,2618.0,2617.9,0.04979113]
[1724251348816,7.71585074,2618.0,2617.9,0.04979113]
[1724251349052,3.81947,2618.2,2618.1,0.04979113]
[1724251349436,4.201102,2618.4,2618.3,0.04979113]
[1724251349636,3.81884,2618.6,2618.3,0.04979113]
[1724251349951,3.81912,2618.4,2618.3,0.04979113]
[1724251350155,3.81861,2618.8,2618.7,0.04979113]
[1724251350470,3.81817,2619.1,2618.9,0.04979113]
[1724251351290,3.81825,2619.0,2618.9,0.04979113]
[1724251351640,0.42236399,2619.2,2618.7,0.04979113]
[1724251351641,3.81854,2618.8,2618.7,0.04979113]
[1724251352371,7.63708,2618.8,2618.7,0.04979113]
[1724251352584,3.81854,2618.8,2618.7,0.04979113]
[1724251352742,3.81817,2619.1,2618.9,0.04979113]
[1724251352942,3.81825,2619.0,2618.9,0.04979113]
[1724251353146,4.5726534,2619.1,2617.9,5.1849]
[1724251353147,3.81849,2618.9,2618.6,0.04979113]
[1724251353453,3.81818,2619.1,2619.0,0.04979113]
[1724251353657,3.72736399,2619.2,2619.0,0.04979113]
[1724251353658,0.42236399,2619.2,2619.0,0.04979113]
[1724251353874,7.6362,2619.1,2619.0,0.04979113]
[1724251354035,3.81839,2618.9,2618.8,0.04979113]
[1724251354638,3.81834,2619.0,2618.8,0.04979113]
[1724251355037,4.24039399,2619.2,2618.8,0.04979113]
[1724251355252,0.42236399,2619.2,2619.1,0.04979113]
[1724251355455,4.24031399,2619.2,2619.1,0.04979113]
[1724251355770,8.52225866,2619.2,2619.1,0.04979113]
[1724251355975,3.81825,2619.0,2618.9,0.04979113]
[1724251356142,3.89470074,2619.0,2618.9,0.04979113]
[1724251356342,4.24039399,2619.2,2619.1,0.04979113]
[1724251356652,0.42236399,2619.2,2619.1,0.04979113]
[1724251356853,4.24031399,2619.2,2619.1,0.04979113]
[1724251357088,0.42236399,2619.2,2619.1,0.04979113]
[1724251358144,8.48228339,2619.2,2619.1,0.04979113]
[1724251358354,4.24031399,2619.2,2619.1,0.04979113]
[1724251358710,0.42236399,2619.2,2619.1,0.04979113]
[1724251361350,0.42236399,2619.2,2619.1,5.18754288]
[1724251361986,0.42236399,2619.2,2619.1,0.13994288]
[1724251362352,4.24031399,2619.2,2619.1,0.13994288]
[1724251362555,0.42236399,2619.2,2619.1,0.13994288]
[1724251363068,4.24031399,2619.2,2619.1,0.13994288]
[1724251363250,0.42236399,2619.2,2619.1,0.13994288]
[1724251363858,0.42236399,2619.2,2619.1,0.09015175]
[1724251363859,8.05826399,2619.2,2619.1,0.09015175]
[1724251364107,0.42236399,2619.2,2619.1,0.13994288]
[1724251364304,0.42236399,2619.2,2619.1,0.04979113]
[1724251364722,0.42236399,2619.2,2619.1,3.95744145]
[1724251365015,0.42236399,2619.2,2619.1,4.7350066]
[1724251366173,0.42236399,2619.2,2619.1,0.9169066]
[1724251366502,0.42236399,2619.2,2619.1,4.7350066]
[1724251366711,0.42236399,2619.2,2619.1,13.6194066]
[1724251367003,3.9408998,2620.4,2620.3,0.04979113]
[1724251367342,0.1246198,2620.4,2620.3,0.04979113]
[1724251367654,0.1246198,2620.4,2620.3,0.13764792]
[1724251367901,0.1246198,2620.4,2620.3,0.04979113]
[1724251368104,0.1246198,2620.4,2620.3,0.13764792]
[1724251368290,0.1246198,2620.4,2620.3,0.04979113]
[1724251368769,0.1246198,2620.4,2620.3,0.13746052]
[1724251368979,3.82149608,2621.0,2620.9,4.76719113]
[1724251368980,0.00602608,2621.0,2620.9,4.76719113]
[1724251369188,0.00715068,2621.1,2621.0,5.49523]
[1724251369385,0.00715068,2621.1,2621.0,17.05489]
[1724251369624,0.00715068,2621.1,2621.0,7.94436489]
[1724251369807,0.00715068,2621.1,2621.0,1.76670488]
[1724251369961,0.00715068,2621.1,2621.0,0.08680488]
[1724251370158,0.00715068,2621.1,2621.0,7.71746488]
[1724251370459,0.00715068,2621.1,2621.0,8.75253488]
[1724251370695,0.00715068,2621.1,2621.0,12.56786488]
[1724251370903,7.63753068,2621.1,2621.0,0.08680488]
[1724251371306,3.81533,2621.0,2620.9,0.04979113]
[1724251371486,5.1093,2621.0,2620.9,0.04979113]
[1724251371699,5.1093,2621.0,2619.6,0.7]
[1724251371700,3.81646,2620.3,2619.6,3.8173]
[1724251371860,3.81646,2620.3,2619.1,0.7]
[1724251371861,3.81655,2620.2,2619.5,7.63486]
[1724251372059,3.81646,2620.3,2619.7,0.08790689]
[1724251372060,3.8167,2620.1,2619.7,0.08790689]